bitfinex/quotes_ETHUSD_20241022
["timestamp","ask_amount","ask_price","bid_price","bid_amount"]
[1729593794363,5.12991933,2633.2,2632.9,0.15973409]
[1729593795160,3.7971,2633.6,2633.2,3.79765]
[1729593795319,0.7758,2633.8,2633.2,2.11355933]
[1729593795320,1.33225933,2633.8,2633.2,2.11355933]
[1729593795651,3.7969,2633.8,2633.4,0.7813]
[1729593795850,3.7969,2633.8,2633.5,0.15928541]
[1729593796009,3.79667,2633.9,2633.5,0.15928541]
[1729593796207,3.79646,2634.1,2633.7,0.7813]
[1729593796550,5.12871933,2634.1,2633.8,0.1590982]
[1729593796758,5.12869933,2634.1,2633.8,0.1590982]
[1729593796910,5.12869933,2634.1,2633.7,0.7813]
[1729593797113,3.7966,2634.0,2633.9,0.1588678]
[1729593797614,3.7966,2634.0,2633.7,0.7813]
[1729593797812,3.79707,2633.7,2633.3,0.8289]
[1729593798056,5.12949933,2633.5,2633.1,0.8289]
[1729593798211,5.12971933,2633.4,2633.1,0.8289]
[1729593798568,5.12949933,2633.5,2633.1,0.8289]
[1729593799975,8.92679933,2633.5,2633.1,0.8289]
[1729593800159,5.12949933,2633.5,2633.1,0.8289]
[1729593801247,3.79724,2633.5,2633.1,4.62667]
[1729593802483,3.79724,2633.5,2633.2,0.15918608]
[1729593805064,5.12926933,2633.7,2633.2,0.15918608]
[1729593805272,3.79701,2633.7,2633.3,1.33225933]
[1729593805459,3.79701,2633.7,2633.4,0.15889324]
[1729593805646,3.79701,2633.7,2633.1,5.95892933]
[1729593805847,1.33225933,2633.7,2633.2,0.15901808]
[1729593806070,1.33225933,2633.7,2633.2,3.95663808]
[1729593806266,3.79694,2633.7,2633.2,5.28889741]
[1729593806477,3.79687,2633.8,2633.3,5.2056558]
[1729593806743,4.62474,2633.9,2633.4,0.15889324]
[1729593806744,3.79695,2633.7,2633.4,0.15889324]
[1729593807770,3.79709,2633.6,2633.4,0.15889324]
[1729593807987,3.79709,2633.6,2633.2,0.55]
[1729593808288,3.79709,2633.6,2633.3,0.15903964]
[1729593808487,3.79709,2633.6,2633.2,0.55]
[1729593808684,3.79709,2633.6,2633.3,0.15903964]
[1729593808887,3.79709,2633.6,2633.2,0.55]
[1729593809090,3.79783,2633.1,2632.5,0.7681]
[1729593809397,3.79804,2633.0,2632.5,4.56668]
[1729593809686,3.79809,2632.9,2632.5,0.7681]
[1729593810067,3.79825,2632.8,2632.5,0.7681]
[1729593810259,5.13034933,2632.9,2632.3,0.8125]
[1729593810260,3.79841,2632.7,2632.3,0.8125]
[1729593810457,5.13034933,2632.9,2632.4,1.33225933]
[1729593810458,3.79809,2632.9,2632.4,1.33225933]
[1729593810697,3.79809,2632.9,2632.5,1.33225933]
[1729593811572,3.79809,2632.9,2632.4,5.13103933]
[1729593811773,3.79809,2632.9,2632.5,1.33225933]
[1729593811976,3.79809,2632.9,2632.4,3.79878]
[1729593812192,3.79838,2632.7,2632.3,0.8125]
[1729593812545,3.79838,2632.7,2632.3,2.14475933]
[1729593812750,3.79838,2632.7,2632.3,0.8125]
[1729593813593,3.79737201,2632.7,2632.3,0.8125]
[1729593814192,3.79824,2632.8,2632.3,0.8125]
[1729593814595,3.79824,2632.8,2632.3,5.94370933]
[1729593815066,3.79824,2632.8,2632.3,4.61145]
[1729593815464,3.79824,2632.8,2632.3,5.94370933]
[1729593815870,3.79824,2632.8,2632.3,4.61145]
[1729593816071,3.79824,2632.8,2632.3,5.94370933]
[1729593817582,3.79824,2632.8,2632.4,0.15425537]
[1729593821982,3.79824,2632.8,2632.4,3.95304537]
[1729593823922,5.13073933,2632.7,2632.4,0.15425537]
[1729593824123,1.33225933,2632.7,2632.4,0.15425537]
[1729593824328,3.79824,2632.8,2632.4,0.15425537]
[1729593824937,5.13049933,2632.8,2632.4,3.95306537]
[1729593825937,3.79824,2632.8,2632.4,3.95306537]
[1729593826307,5.13049933,2632.8,2632.4,3.95306537]
[1729593826603,3.79824,2632.8,2632.4,3.95306537]
[1729593827892,5.13049933,2632.8,2632.4,0.15425537]
[1729593828987,3.79824,2632.8,2632.4,3.95306537]
[1729593829840,5.13049933,2632.8,2632.4,3.95306537]
[1729593830230,3.79824,2632.8,2632.4,3.95306537]
[1729593831731,3.79824,2632.8,2632.4,0.15425537]
[1729593831939,5.13084933,2632.6,2632.4,0.15425537]
[1729593832447,5.13096933,2632.5,2632.0,8.35812]
[1729593832594,3.79859,2632.6,2632.0,8.35812]
[1729593833146,5.13084933,2632.6,2632.1,3.79921]
[1729593836498,2.08395933,2632.7,2632.2,3.79906]
[1729593837214,5.88239933,2632.7,2632.2,3.79906]
[1729593840021,5.13034933,2632.9,2632.4,3.79872]
[1729593840228,5.13034933,2632.9,2632.4,3.79881]
[1729593840543,1.33225933,2632.8,2632.3,4.60518]
[1729593840743,1.33225933,2632.8,2632.5,3.79866]
[1729593841548,5.13020933,2633.0,2632.6,3.79852]
[1729593841729,5.13020933,2633.0,2632.6,4.60732]
[1729593841730,1.33225933,2632.9,2632.6,4.60732]
[1729593842146,1.33225933,2632.9,2632.6,5.45552796]
[1729593842447,1.33225933,2632.9,2632.6,1.65700796]
[1729593842654,1.33225933,2632.9,2632.6,4.60728]
[1729593843145,1.33225933,2633.0,2632.6,4.60728]
[1729593843347,1.33225933,2632.9,2632.6,4.60728]
[1729593844452,1.33225933,2633.0,2632.6,4.60728]
[1729593845722,5.13020933,2633.0,2632.6,4.60728]
[1729593846267,1.33225933,2632.9,2632.6,4.60728]
[1729593846860,1.33225933,2632.9,2632.6,5.447888]
[1729593847164,5.13020933,2633.0,2632.6,5.447888]
[1729593847665,5.13020933,2633.0,2632.7,0.15475217]
[1729593851217,1.33225933,2633.0,2632.7,0.15475217]
[1729593851421,3.7981,2632.9,2632.7,0.15475217]
[1729593852864,1.33225933,2633.0,2632.7,0.15475217]
[1729593853182,5.13024933,2633.0,2632.7,0.15475217]
[1729593858174,1.33225933,2633.0,2632.7,0.15475217]
[1729593858477,3.7981,2632.9,2632.7,0.15475217]
[1729593858771,1.33225933,2633.0,2632.7,0.15475217]
[1729593859375,5.13030933,2633.0,2632.7,0.15475217]
[1729593860960,1.33225933,2632.9,2632.7,0.15475217]
[1729593861162,3.7981,2632.9,2632.7,0.15475217]
[1729593865799,5.13020933,2633.0,2632.7,0.15475217]
[1729593866461,3.79795,2633.0,2632.7,0.15475217]
[1729593866662,3.79767,2633.2,2632.7,1.96322172]
[1729593866871,5.13020933,2633.0,2632.8,0.8268]
[1729593867169,3.79795,2633.0,2632.9,0.15461741]
[1729593867757,1.33225933,2633.1,2632.9,0.15461741]
[1729593868285,3.79782,2633.1,2632.9,0.15461741]
[1729593868803,5.13007933,2633.1,2632.9,0.15461741]
[1729593870601,5.91349933,2633.0,2632.9,0.15461741]
[1729593870967,3.79841,2632.7,2632.4,0.28333985]
[1729593871170,3.79841,2632.7,2632.5,0.15486721]
[1729593871704,3.79841,2632.7,2632.3,0.7994]
[1729593872013,3.79841,2632.7,2632.4,0.28335564]
[1729593872192,3.79841,2632.7,2632.4,0.15492967]
[1729593872708,3.79841,2632.7,2632.4,0.43829123]
[1729593873013,5.13052933,2632.8,2632.4,0.43829123]
[1729593873297,5.13052933,2632.8,2632.4,0.15492967]
[1729593874299,5.13052933,2632.8,2632.4,1.01015864]
[1729593875810,3.79827,2632.8,2632.4,1.01015864]
[1729593876099,1.33225933,2632.9,2632.5,0.28330084]
[1729593876401,3.79809,2632.9,2632.6,0.15480475]
[1729593876802,0.7833,2633.0,2632.5,4.57157]
[1729593877107,0.7833,2633.0,2632.3,1.4082285]
[1729593877108,1.33225933,2633.2,2632.8,0.773]
[1729593877515,3.79737,2633.4,2632.8,0.773]
[1729593877516,3.79737,2633.4,2632.9,0.15461741]
[1729593877671,3.79737,2633.4,2632.9,3.95263741]
[1729593877875,1.33225933,2633.4,2632.9,3.95261741]
[1729593878069,1.33225933,2633.3,2633.0,0.60578767]
[1729593878269,1.33225933,2633.2,2633.0,0.60578767]
[1729593878488,3.79739,2633.4,2633.0,0.60578767]
[1729593878489,1.33225933,2633.3,2633.1,0.15450731]
[1729593879606,1.33225933,2633.2,2633.1,0.15450731]
[1729593880601,1.33225933,2633.2,2632.9,3.798]
[1729593880806,1.33225933,2633.2,2633.1,0.15450731]
[1729593881004,1.33225933,2633.2,2633.0,0.15456975]
[1729593881307,1.33225933,2633.2,2633.1,0.15450731]
[1729593881606,1.33225933,2633.2,2632.8,0.773]
[1729593881607,5.12991933,2633.2,2632.8,0.773]
[1729593881812,1.33225933,2633.2,2633.1,0.15450731]
[1729593882017,1.33225933,2633.2,2632.8,4.57122]
[1729593882312,1.33225933,2633.2,2633.1,0.15450731]
[1729593882468,1.33225933,2633.2,2632.8,4.57122]
[1729593882670,1.33225933,2633.3,2633.1,0.15450731]
[1729593882912,1.33225933,2633.3,2632.9,3.79806]
[1729593883117,1.33225933,2633.3,2633.2,0.15444489]
[1729593883298,1.33225933,2633.3,2632.9,3.79806]
[1729593883501,1.33225933,2633.3,2633.2,0.15444489]
[1729593884018,1.33225933,2633.3,2632.9,3.79806]
[1729593884211,1.33225933,2633.3,2633.2,0.15444489]
[1729593884373,1.33225933,2633.3,2632.9,3.79806]
[1729593884574,1.33225933,2633.3,2633.0,0.61167575]
[1729593884876,1.33225933,2633.2,2633.0,0.61167575]
[1729593885211,1.33225933,2633.2,2633.0,0.15456975]
[1729593885370,1.33225933,2633.1,2633.0,0.15456975]
[1729593885573,5.13005933,2633.1,2632.8,0.773]
[1729593885774,5.13005933,2633.1,2632.9,0.15463218]
[1729593888395,1.33225933,2633.0,2632.9,0.15463218]
[1729593888920,1.33225933,2633.0,2632.9,0.15374926]
[1729593890826,1.33225933,2633.0,2632.9,0.15460275]
[1729593891024,1.33225933,2633.1,2632.6,4.55458]
[1729593891324,1.33225933,2633.2,2632.9,0.15460275]
[1729593891526,1.33225933,2633.2,2632.8,3.79816]
[1729593891726,1.33225933,2633.2,2633.0,0.15454031]
[1729593891893,1.33225933,2633.2,2632.9,0.15460275]
[1729593892096,1.33225933,2633.2,2633.1,0.15447788]
[1729593892311,1.33225933,2633.2,2633.0,0.15454031]
[1729593892622,1.33225933,2633.2,2633.1,0.15447788]
[1729593893023,1.33225933,2633.2,2632.8,3.79816]
[1729593893326,1.33225933,2633.2,2633.1,0.15441882]
[1729593893513,1.33225933,2633.2,2632.8,3.79816]
[1729593893746,1.33225933,2633.2,2633.1,0.15441882]
[1729593893912,1.33225933,2633.2,2632.8,3.79816]
[1729593894110,1.33225933,2633.2,2633.1,0.15441882]
[1729593894322,1.33225933,2633.2,2632.8,3.79816]
[1729593894524,1.33225933,2633.2,2633.1,0.15441882]
[1729593894995,1.33225933,2633.2,2632.8,3.79816]
[1729593895195,1.33225933,2633.2,2633.1,0.15441882]
[1729593895395,1.33225933,2633.2,2632.8,3.79816]
[1729593895629,1.33225933,2633.2,2633.1,0.15441882]
[1729593895816,1.33225933,2633.2,2632.8,3.79816]
[1729593896012,1.33225933,2633.1,2632.7,3.79837]
[1729593896515,1.33225933,2633.0,2632.8,0.15460612]
[1729593896907,1.33225933,2633.0,2632.7,3.79837]
[1729593897126,1.33225933,2633.0,2632.9,0.15454368]
[1729593897426,1.33225933,2633.1,2632.9,0.15454368]
[1729593897630,3.79752,2633.3,2632.7,3.7983]
[1729593897819,1.33225933,2633.2,2633.0,0.15448125]
[1729593898021,1.33225933,2633.2,2632.8,3.79821]
[1729593898331,3.79752,2633.3,2633.1,0.15441882]
[1729593898492,3.79752,2633.3,2632.8,3.79821]
[1729593898694,3.79752,2633.3,2633.2,0.15435639]
[1729593898893,3.79752,2633.3,2632.8,3.79821]
[1729593899109,3.79752,2633.3,2633.2,0.15435639]
[1729593899298,3.79752,2633.3,2632.8,3.79821]
[1729593899497,3.79752,2633.3,2633.2,0.15435639]
[1729593900010,3.79752,2633.3,2632.8,3.79821]
[1729593900199,3.79752,2633.3,2633.2,0.15435639]
[1729593900527,3.79768,2633.2,2632.7,3.7983]
[1729593900828,1.33225933,2633.1,2632.7,3.7983]
[1729593902091,5.12993933,2633.2,2632.7,3.7983]
[1729593902791,1.33225933,2633.0,2632.6,0.7561]
[1729593902990,5.13020933,2633.0,2632.6,0.7561]
[1729593904302,5.13020933,2633.0,2632.6,4.55461]
[1729593905110,1.33225933,2633.0,2632.6,4.55461]
[1729593906523,1.33225933,2633.0,2632.6,8.35306]
[1729593906921,1.33225933,2633.0,2632.6,8.35298]
[1729593907319,1.33225933,2633.0,2632.6,8.35296]
[1729593907505,1.33225933,2633.0,2632.7,3.79836]
[1729593907858,1.33225933,2633.0,2632.7,3.95304827]
[1729593908055,1.33225933,2632.8,2632.7,0.15468827]
[1729593908545,1.33225933,2632.8,2632.4,4.58715]
[1729593908546,1.33225933,2632.9,2632.4,4.58715]
[1729593908804,1.33225933,2632.9,2632.5,3.79865]
[1729593908956,1.33225933,2632.9,2632.6,0.15475072]
[1729593909313,1.33225933,2632.8,2632.6,0.15475072]
[1729593909508,1.33225933,2632.8,2632.4,4.58715]
[1729593909816,2.10265933,2632.7,2632.5,0.15481318]
[1729593910640,2.10265933,2632.7,2632.3,3.79895]
[1729593910849,2.10265933,2632.7,2632.6,0.1547458]
[1729593911313,2.10265933,2632.7,2632.3,3.79895]
[1729593911515,2.10265933,2632.7,2632.4,0.15487071]
[1729593912147,5.13049933,2632.8,2632.4,3.95367071]
[1729593912667,1.33225933,2632.7,2632.4,3.95367071]
[1729593912873,5.13049933,2632.8,2632.4,3.95367071]
[1729593913338,1.33225933,2632.8,2632.4,3.95360071]
[1729593914170,3.79781,2633.1,2632.6,4.60771]
[1729593914378,1.33225933,2633.0,2632.7,0.15468335]
[1729593915034,1.33225933,2633.0,2632.7,3.95305335]
[1729593916470,1.33225933,2632.8,2632.7,0.15468335]
[1729593916771,1.33225933,2632.9,2632.7,0.15468335]
[1729593917375,1.33225933,2632.9,2632.7,3.95305335]
[1729593917669,3.79738,2633.4,2632.9,0.7589]
[1729593917830,3.79738,2633.4,2633.0,3.79787]
[1729593917831,1.33225933,2633.4,2633.0,3.79787]
[1729593918030,1.33225933,2633.4,2633.1,4.55669]
[1729593918472,1.33225933,2633.4,2633.2,0.1544844]
[1729593918789,1.33225933,2633.3,2633.2,0.1544844]
[1729593922268,1.33225933,2633.4,2633.2,0.1544844]
[1729593922676,1.33225933,2633.3,2633.2,0.1544844]
[1729593922845,1.33225933,2633.6,2633.2,4.80301084]
[1729593923050,1.33225933,2633.6,2633.4,0.794]
[1729593923373,1.33225933,2633.5,2633.4,0.794]
[1729593924537,1.33225933,2633.5,2633.2,4.61544]
[1729593925779,1.33225933,2633.6,2633.2,4.61544]
[1729593926079,3.01900055,2634.1,2632.7,3.79834]
[1729593926080,5.14764988,2634.1,2633.6,4.57606]
[1729593926287,3.79639,2634.1,2633.6,4.57606]
[1729593926450,5.12864933,2634.1,2633.6,4.57606]
[1729593926777,3.79608,2634.3,2633.6,2.11135933]
[1729593926992,4.55073,2634.4,2633.8,0.55]
[1729593927288,4.55073,2634.4,2633.9,4.59337]
[1729593927289,3.79593,2634.4,2633.9,4.59337]
[1729593927837,3.79589,2634.5,2634.0,3.79643]
[1729593928040,1.33225933,2634.3,2634.0,3.79643]
[1729593928656,1.33225933,2634.3,2633.9,4.59343]
[1729593928835,1.33225933,2634.3,2633.9,0.7968]
[1729593930842,1.33225933,2634.3,2633.9,4.59337]
[1729593931042,1.33225933,2634.3,2633.9,5.64247389]
[1729593931797,5.12833933,2634.3,2633.9,1.84590389]
[1729593931951,1.33225933,2634.2,2633.9,1.84590389]
[1729593932969,1.33225933,2634.1,2633.9,1.84590389]
[1729593933173,3.79681,2633.8,2633.2,3.79757]
[1729593933376,1.33225933,2633.8,2633.3,3.79743]
[1729593933578,5.12882933,2634.0,2633.5,0.8204]
[1729593933794,3.79657,2634.0,2633.5,1.42300261]
[1729593933961,3.79657,2634.0,2633.5,5.22015261]
[1729593934162,1.33225933,2633.9,2633.5,5.22015261]
[1729593934558,5.12882933,2634.0,2633.5,5.22015261]
[1729593934753,1.33225933,2634.0,2633.6,0.55]
[1729593934994,1.33225933,2634.0,2633.6,4.67756619]
[1729593935396,1.33225933,2634.0,2633.6,0.88052619]
[1729593935692,1.33225933,2634.1,2633.8,0.8204]
[1729593936554,5.12876933,2634.0,2633.8,0.8204]
[1729593936790,3.79651,2634.0,2633.8,0.8204]
[1729593936999,5.12876933,2634.0,2633.8,0.8204]
[1729593937467,1.33225933,2633.9,2633.6,1.3704]
[1729593937680,3.79667,2633.9,2633.6,0.8204]
[1729593937896,1.71192633,2633.8,2633.3,1.3704]
[1729593938054,9.69199933,2633.9,2633.4,3.79733]
[1729593938392,3.79682,2633.8,2633.3,6.50015933]
[1729593938556,3.79682,2633.8,2633.3,5.1679]
[1729593938756,3.79682,2633.8,2633.3,6.19767093]
[1729593939165,5.12907933,2633.8,2633.3,6.19767093]
[1729593939494,3.79682,2633.8,2633.3,6.19767093]
[1729593939801,5.12907933,2633.8,2633.3,6.19767093]
[1729593939963,3.79682,2633.8,2633.3,6.19767093]
[1729593942622,3.79682,2633.8,2633.3,7.52993026]
[1729593942966,3.79682,2633.8,2633.3,6.19767093]
[1729593944924,1.33225933,2633.8,2633.3,6.19767093]
[1729593945213,5.89523933,2633.9,2633.4,3.79737]
[1729593945412,2.09855933,2633.9,2633.5,3.79722]
[1729593945617,0.7663,2633.9,2633.5,3.79722]
[1729593946449,0.6663,2633.9,2633.5,4.92993503]
[1729593946645,0.6663,2633.9,2633.5,4.92984503]
[1729593946839,0.6663,2633.9,2633.5,8.72700503]
[1729593947039,0.6663,2633.9,2633.5,4.92984503]
[1729593947242,8.92520933,2634.1,2633.6,5.18489044]
[1729593947427,1.33225933,2634.0,2633.6,5.18489044]
[1729593947607,8.92520933,2634.1,2633.6,5.18489044]
[1729593947807,1.33225933,2633.8,2633.6,1.38781044]
[1729593948007,5.12890933,2633.9,2633.5,0.55]
[1729593948237,5.12890933,2633.9,2633.5,4.34722]
[1729593948955,1.33225933,2633.9,2633.5,4.34722]
[1729593949157,5.12878933,2634.0,2633.5,4.34722]
[1729593949510,5.93768933,2634.0,2633.5,4.34722]
[1729593950250,2.14115933,2634.0,2633.6,3.79697]
[1729593950455,0.8089,2634.0,2633.6,3.79697]
[1729593950614,2.14115933,2634.0,2633.6,3.79697]
[1729593951546,3.79646,2634.1,2633.6,3.79697]
[1729593951857,5.12871933,2634.1,2633.7,3.79693]
[1729593952005,5.12871933,2634.1,2633.7,4.71373059]
[1729593952208,5.12871933,2634.1,2633.8,0.7763]
[1729593952451,5.12871933,2634.1,2633.9,0.15287131]
[1729593953998,1.33225933,2634.2,2633.9,0.15287131]
[1729593954200,1.33225933,2634.1,2633.9,0.15287131]
[1729593954359,1.33225933,2634.1,2633.9,0.7171385]
[1729593955856,1.33225933,2634.2,2633.9,0.7171385]
[1729593956091,1.33225933,2634.1,2633.9,0.7171385]
[1729593957282,1.33225933,2634.2,2633.9,0.7171385]
[1729593958695,5.12847933,2634.2,2633.9,0.7171385]
[1729593959009,1.33225933,2634.1,2633.9,0.7171385]
[1729593959915,5.12847933,2634.2,2633.9,0.7171385]
[1729593961112,1.33225933,2634.1,2633.9,0.7171385]
[1729593962199,1.33225933,2634.2,2633.9,0.7171385]
[1729593963928,5.12848933,2634.2,2633.9,0.7171385]
[1729593964134,1.33225933,2634.1,2633.9,0.7171385]
[1729593964430,1.33225933,2634.1,2633.9,0.15287131]
[1729593966296,5.12833933,2634.3,2633.9,0.15287131]
[1729593966496,1.33225933,2634.2,2633.9,0.15287131]
[1729593966833,1.33225933,2634.2,2634.0,0.15274499]
[1729593967038,1.33225933,2634.2,2633.8,4.57295]
[1729593967340,3.79608,2634.3,2633.9,4.40674238]
[1729593968202,5.12833933,2634.3,2633.9,0.61010238]
[1729593968931,5.12848933,2634.2,2633.9,0.61010238]
[1729593969153,5.12848933,2634.2,2633.9,0.15280738]
[1729593969720,5.12833933,2634.3,2633.9,0.15280738]
[1729593969923,3.79589,2634.5,2634.0,3.79641]
[1729593970144,1.33225933,2634.4,2634.1,0.8211]
[1729593970468,1.33225933,2634.4,2634.1,0.96848628]
[1729593971257,1.33225933,2634.4,2634.1,1.45258009]
[1729593971258,1.33225933,2634.2,2634.1,1.45258009]
[1729593971553,1.33225933,2634.4,2634.1,1.45258009]
[1729593971750,0.7903,2634.6,2634.1,5.24892009]
[1729593971967,5.12781933,2634.7,2634.2,3.87206959]
[1729593972135,1.33225933,2634.6,2634.3,0.91209897]
[1729593972316,3.79556,2634.7,2634.3,0.91209897]
[1729593972317,7.59116,2634.7,2634.3,1.05928211]
[1729593972518,1.33225933,2634.6,2634.3,1.05928211]
[1729593973131,0.8013,2634.8,2634.3,4.85531211]
[1729593973432,1.33225933,2634.6,2634.3,4.85531211]
[1729593973634,1.33225933,2634.7,2634.4,0.86515121]
[1729593973963,1.33225933,2634.7,2634.5,0.14704861]
[1729593974163,1.33225933,2634.6,2634.5,0.14704861]
[1729593975037,1.33225933,2634.6,2634.3,3.79605]
[1729593975235,1.33225933,2634.7,2634.4,0.90632898]
[1729593976222,1.33225933,2634.6,2634.4,0.90632898]
[1729593976949,1.33225933,2634.7,2634.4,0.90632898]
[1729593977154,1.33225933,2634.6,2634.4,0.14711098]
[1729593977549,1.33225933,2634.6,2634.2,3.79613]
[1729593978066,1.33225933,2634.6,2634.3,0.14708518]
[1729593978476,1.33225933,2634.6,2634.2,3.79612]
[1729593978682,1.33225933,2634.6,2634.4,0.14683665]
[1729593978883,1.33225933,2634.5,2634.3,0.14689902]
[1729593979105,2.08715933,2634.4,2633.8,4.57041]
[1729593979254,1.33225933,2634.1,2633.8,4.57041]
[1729593979455,3.79622,2634.2,2633.8,0.7737]
[1729593979653,3.79617,2634.3,2633.6,4.5707]
[1729593979854,1.33225933,2634.1,2633.8,3.79676]
[1729593980259,1.33225933,2634.1,2633.6,4.5707]
[1729593980475,1.33225933,2634.1,2633.7,4.38718593]
[1729593980959,1.33225933,2634.1,2633.7,4.38722593]
[1729593981155,1.33225933,2634.1,2633.7,0.59029593]
[1729593981459,1.33225933,2634.1,2633.7,4.38711593]
[1729593982205,1.33225933,2634.1,2633.7,0.59029593]
[1729593982367,1.33225933,2634.1,2633.8,3.79678]
[1729593982559,1.33225933,2634.1,2633.8,3.94399093]
[1729593983501,5.12890933,2633.9,2633.8,0.14721093]
[1729593983710,5.92020933,2633.9,2633.8,0.14721093]
[1729593983994,2.12355933,2633.9,2633.4,3.79727]
[1729593984236,0.7913,2633.9,2633.5,0.14749121]
[1729593984538,1.33225933,2633.7,2633.5,0.14749121]
[1729593984740,2.12355933,2633.9,2633.5,4.77365121]
[1729593984949,5.12868933,2634.1,2633.7,3.79691]
[1729593985249,1.33225933,2633.9,2633.8,0.14737258]
[1729593985401,1.33225933,2633.9,2633.6,4.28198924]
[1729593985599,1.33225933,2633.9,2633.7,0.14746437]
[1729593987441,2.11275933,2633.8,2633.7,0.14746437]
[1729593987736,2.11275933,2633.8,2633.4,3.79736]
[1729593987946,0.7805,2633.8,2633.7,0.14746437]
[1729593988464,0.7805,2633.8,2633.5,4.638626]
[1729593988752,0.7805,2633.8,2633.6,0.14752678]
[1729593989118,2.11275933,2633.8,2633.6,0.14752678]
[1729593989333,2.11275933,2633.8,2633.6,0.62614206]
[1729593989628,2.15935933,2634.0,2633.6,0.62614206]
[1729593989949,5.12875933,2634.1,2633.7,0.8307]
[1729593990244,1.33225933,2634.0,2633.8,0.14762734]
[1729593990447,1.33225933,2634.0,2633.7,0.8307]
[1729593990620,1.33225933,2634.0,2633.8,0.14762734]
[1729593990817,1.33225933,2634.0,2633.7,0.8307]
[1729593991037,1.33225933,2634.0,2633.8,0.14762734]
[1729593991341,1.33225933,2634.0,2633.7,0.8307]
[1729593991580,1.33225933,2634.2,2633.9,0.14756495]
[1729593991754,0.7939,2634.3,2633.9,4.34655]
[1729593991904,1.33225933,2634.4,2634.0,0.14750256]
[1729593992103,1.33225933,2634.3,2634.0,1.10981175]
[1729593992737,1.33225933,2634.4,2634.0,4.90623175]
[1729593993049,1.33225933,2634.4,2634.1,0.8124]
[1729593993544,1.33225933,2634.3,2634.2,0.1473778]
[1729593993946,4.62056,2634.5,2634.2,0.1473778]
[1729593993947,1.33225933,2634.4,2634.2,0.1473778]
[1729593994145,5.12811933,2634.5,2634.2,0.1473778]
[1729593994451,3.79586,2634.5,2634.2,0.1473778]
[1729593994654,5.12811933,2634.5,2634.2,0.1473778]
[1729593995365,1.33225933,2634.4,2634.2,0.1473778]
[1729593995521,5.12811933,2634.5,2634.2,0.1473778]
[1729593995859,5.12811933,2634.5,2634.2,0.72681766]
[1729593996327,1.33225933,2634.4,2634.2,0.72681766]
[1729594000263,2.14925933,2634.3,2634.2,0.1473778]
[1729594000462,2.14925933,2634.3,2633.9,0.55]
[1729594000661,5.94532933,2634.3,2634.0,0.14750256]
[1729594000871,1.33225933,2634.2,2634.0,0.14750256]
[1729594001427,1.33225933,2634.1,2634.0,0.14750256]
[1729594001766,5.89601933,2634.1,2634.0,0.14750256]
[1729594001960,5.89601933,2634.1,2633.5,0.8023]
[1729594002186,2.09965933,2634.1,2634.0,0.14750256]
[1729594002764,5.89601933,2634.1,2633.6,8.053907]
[1729594002983,5.89601933,2634.1,2634.0,0.14750256]
[1729594003689,5.89601933,2634.1,2633.7,3.79692]
[1729594003878,5.89601933,2634.1,2634.0,0.14750256]
[1729594004189,5.89601933,2634.1,2633.7,4.81578263]
[1729594004346,5.89601933,2634.1,2634.0,0.14750256]
[1729594004854,3.79652,2634.0,2633.5,4.59949]
[1729594005057,1.33225933,2633.9,2633.5,4.59949]
[1729594005262,1.33225933,2633.9,2633.5,5.439181]
[1729594005454,3.79652,2634.0,2633.5,5.439181]
[1729594005662,3.79652,2634.0,2633.1,2.76974366]
[1729594005663,4.56898,2633.6,2633.2,0.8292]
[1729594005993,4.56897,2633.6,2633.0,0.8292]
[1729594006194,3.79724,2633.5,2633.0,4.62713]
[1729594006775,5.12949933,2633.5,2633.0,0.8292]
[1729594006979,5.12949933,2633.5,2633.0,5.22297593]
[1729594007187,5.90117933,2633.6,2633.1,3.79779]
[1729594007362,5.90117933,2633.6,2633.1,7.59547]
[1729594007991,5.90117933,2633.6,2633.1,3.79768]
[1729594008798,5.90117933,2633.6,2633.1,7.59537]
[1729594008960,5.90117933,2633.6,2633.2,1.03527753]
[1729594009448,2.10405933,2633.6,2633.2,1.03527753]
[1729594009645,1.33225933,2633.7,2633.2,4.83287753]
[1729594009879,1.33225933,2633.6,2633.3,0.8292]
[1729594010085,1.33225933,2633.7,2633.3,0.8292]
[1729594010474,5.12921933,2633.7,2633.3,0.8292]
[1729594010658,1.33225933,2633.6,2633.3,0.8292]
[1729594010858,3.79696,2633.7,2633.3,1.77517575]
[1729594011071,1.33225933,2633.6,2633.3,1.77517575]
[1729594011672,5.90085933,2633.8,2633.4,3.79734]
[1729594011877,1.33225933,2633.7,2633.4,3.79734]
[1729594012474,1.33225933,2633.7,2633.5,0.14768716]
[1729594013460,1.33225933,2633.6,2633.3,5.57268575]
[1729594013698,1.33225933,2633.6,2633.4,0.14774957]
[1729594013907,1.33225933,2633.7,2633.4,0.14774957]
[1729594014916,1.33225933,2633.5,2633.4,0.14774957]
[1729594015269,1.33225933,2633.5,2633.1,4.55678]
[1729594015593,1.33225933,2633.5,2633.2,0.98333541]
[1729594016290,5.12933933,2633.6,2633.2,0.98333541]
[1729594016502,8.92651933,2633.6,2633.2,0.98333541]
[1729594017396,5.12933933,2633.6,2633.2,0.98333541]
[1729594019109,1.33225933,2633.5,2633.2,0.98333541]
[1729594019330,5.12955933,2633.5,2633.2,0.14787441]
[1729594019485,1.33225933,2633.5,2633.2,0.14787441]
[1729594019676,1.33225933,2633.3,2633.2,0.14787441]
[1729594019878,5.12976933,2633.3,2632.9,0.7745]
[1729594020217,1.33225933,2633.3,2633.0,0.14842555]
[1729594020382,5.12977933,2633.3,2633.0,0.14842555]
[1729594020913,5.92984933,2633.4,2633.0,0.14842555]
[1729594021220,5.12950933,2633.5,2633.0,1.00033311]
[1729594021414,5.12950933,2633.5,2633.0,4.79826311]
[1729594023603,4.60673,2633.6,2633.1,3.79778]
[1729594023604,5.93898933,2633.6,2633.1,3.79778]
[1729594023804,5.12948933,2633.5,2633.1,0.14844644]
[1729594024335,1.33225933,2633.5,2633.1,0.14844644]
[1729594024536,1.33225933,2633.5,2633.1,4.63673177]
[1729594024844,1.33225933,2633.5,2633.1,0.83895177]
[1729594025024,5.12953933,2633.5,2633.1,0.83895177]
[1729594026352,5.12953933,2633.5,2633.2,0.7894]
[1729594026564,5.12953933,2633.5,2633.2,0.93778401]
[1729594027855,3.79713,2633.6,2633.2,1.48040594]
[1729594028053,5.12938933,2633.6,2633.2,1.48040594]
[1729594028256,1.33225933,2633.5,2633.2,5.27805594]
[1729594028412,5.12938933,2633.6,2633.2,1.48040594]
[1729594028612,5.12938933,2633.6,2633.2,5.27800594]
[1729594028958,5.12938933,2633.6,2633.4,0.8276]
[1729594028959,1.33225933,2633.6,2633.4,0.8276]